No. of Trans,Dept Family,Entity Name,Cert Date,Supplier Name,Reference,Gross Amt,Group/Department,Type of Expenditure - Subjective Codes,
1,DCMS,EH,16/04/2013,ESRI (UK) Ltd,0040027999,"57,798.00 ",Resources Group - IMT Department,Software Licences <10k,
2,DCMS,EH,15/04/2013,Wansdyke Security Ltd,0040028430,"5,184.89 ",Resources Group - IMT Department,Other Administration,
3,DCMS,EH,15/04/2013,Wansdyke Security Ltd,0040028430,"20,160.00 ",Resources Group - IMT Department,Other Administration,
4,DCMS,EH,12/04/2013,SoftwareOne UK Ltd,0040028167,"68,736.60 ",Resources Group - IMT Department,Software Maintenance,
5,DCMS,EH,17/04/2013,Capita Secure Information Solutions Ltd,0040028838,"17,746.56 ",Resources Group - IMT Department,Computer consultancy,
6,DCMS,EH,17/04/2013,Capita Secure Information Solutions Ltd,0040028838,"16,173.91 ",Resources Group - IMT Department,Computer consultancy,
7,DCMS,EH,17/04/2013,Capita Secure Information Solutions Ltd,0040028838,"12,254.64 ",Resources Group - IMT Department,Computer Equipment <10k,
8,DCMS,EH,17/04/2013,Capita Secure Information Solutions Ltd,0040028838,"2,671.44 ",Resources Group - IMT Department,Computer consultancy,
9,DCMS,EH,10/04/2013,Amaryllis Ltd,0040028281,"152,509.88 ",Resources Group - Human Resources Department,Wrks for Operational Buildings,
10,DCMS,EH,23/04/2013,Cassini Publishing Ltd,0040028510,"32,400.00 ",Heritage Protection & Planning Group - Heritage Protect & Plng Cent,Licences,
11,DCMS,EH,26/04/2013,Pindar Scarborough Ltd,0020051085,152.00 ,National Collections Group - Marketing Department,Print and Production,
12,DCMS,EH,26/04/2013,Pindar Scarborough Ltd,0020051085,"11,382.00 ",National Collections Group - Marketing Department,Print and Production,
13,DCMS,EH,26/04/2013,Pindar Scarborough Ltd,0020051085,"12,307.00 ",National Collections Group - Marketing Department,Print and Production,
14,DCMS,EH,26/04/2013,Pindar Scarborough Ltd,0020051085,"59,561.00 ",National Collections Group - Marketing Department,Print and Production,
15,DCMS,EH,26/04/2013,Pindar Scarborough Ltd,0020051085,"118,600.00 ",National Collections Group - Marketing Department,Print and Production,
16,DCMS,EH,29/04/2013,British Gas,0020051122,"25,415.85 ",Resources Group - Corporate,Electricity
17,DCMS,EH,05/04/2013,Wedgwood Museum Trading Ltd,0090700110,"50,000.00 ",Heritage Protection & Planning Group - Nat. Planning & Conservation Department,GRANTS PAYABLE - OTHER GRANTS
18,DCMS,EH,26/04/2013,Leicestershire County Council,0090700117,"30,038.00 ",Heritage Protection & Planning Group - Nat. Planning & Conservation Department,GRANTS PAYABLE - AREA
19,DCMS,EH,01/05/2013,Highhead Castle,0082001545,"55,196.00 ",Heritage Protection & Planning Group - Nat. Planning & Conservation Department,GRANTS PAYABLE - HISTORIC BUILDINGS
20,DCMS,EH,09/04/2013,All Hallows Easton PCC,0082001432,"77,600.00 ",Heritage Protection & Planning Group - Nat. Planning & Conservation Department,GRANTS PAYABLE - PLACES OF WORSHIP
21,DCMS,EH,26/04/2013,Wentworth Castle Stainborough Park,0082001483,"89,775.00 ",Heritage Protection & Planning Group - Nat. Planning & Conservation Department,GRANTS PAYABLE - HISTORIC BUILDINGS
22,DCMS,EH,09/04/2013,Cullompton Walronds Preserv Trust,0082001433,"64,350.00 ",Heritage Protection & Planning Group - Nat. Planning & Conservation Department,GRANTS PAYABLE - HISTORIC BUILDINGS
23,DCMS,EH,09/04/2013,London Borough of Hounslow,0082001455,"47,680.00 ",Heritage Protection & Planning Group - Nat. Planning & Conservation Department,GRANTS PAYABLE - HISTORIC BUILDINGS
24,DCMS,EH,23/04/2013,St Mary Magdaelene with St Michael,0082001469,"87,000.00 ",Heritage Protection & Planning Group - Nat. Planning & Conservation Department,GRANTS PAYABLE - PLACES OF WORSHIP
25,DCMS,EH,23/04/2013,The PCC of All Saints Parish,0082001471,"47,500.00 ",Heritage Protection & Planning Group - Nat. Planning & Conservation Department,GRANTS PAYABLE - PLACES OF WORSHIP
26,DCMS,EH,09/04/2013,PCC of St John of Jerusalem,0082001439,"58,000.00 ",Heritage Protection & Planning Group - Nat. Planning & Conservation Department,GRANTS PAYABLE - PLACES OF WORSHIP
27,DCMS,EH,26/04/2013,Birmingham CC- Property Services,0082001494,"123,591.00 ",Heritage Protection & Planning Group - Nat. Planning & Conservation Department,GRANTS PAYABLE - HISTORIC BUILDINGS
28,DCMS,EH,26/04/2013,PCC of Checkendon,0082001524,"51,500.00 ",Heritage Protection & Planning Group - Nat. Planning & Conservation Department,GRANTS PAYABLE - PLACES OF WORSHIP
29,DCMS,EH,26/04/2013,East Barwick Church Committee,0082001486,"31,341.00 ",Heritage Protection & Planning Group - Nat. Planning & Conservation Department,GRANTS PAYABLE - PLACES OF WORSHIP
30,DCMS,EH,26/04/2013,PCC St Peter & St Paul Kirton in Holland,0082001490,"38,500.00 ",Heritage Protection & Planning Group - Nat. Planning & Conservation Department,GRANTS PAYABLE - PLACES OF WORSHIP
31,DCMS,EH,26/04/2013,St Mary's Martham PCC,0082001491,"35,000.00 ",Heritage Protection & Planning Group - Nat. Planning & Conservation Department,GRANTS PAYABLE - PLACES OF WORSHIP
32,DCMS,EH,26/04/2013,Brize Norton PCC,0082001498,"29,941.00 ",Heritage Protection & Planning Group - Nat. Planning & Conservation Department,GRANTS PAYABLE - PLACES OF WORSHIP
33,DCMS,EH,09/04/2013,Shipdham Church Wardens,0082001438,"59,000.00 ",Heritage Protection & Planning Group - Nat. Planning & Conservation Department,GRANTS PAYABLE - PLACES OF WORSHIP
34,DCMS,EH,26/04/2013,"PCC of St Martins Church, North Owersby",0082001495,"32,493.00 ",Heritage Protection & Planning Group - Nat. Planning & Conservation Department,GRANTS PAYABLE - PLACES OF WORSHIP
35,DCMS,EH,26/04/2013,Dallington PCC,0082001509,"42,500.00 ",Heritage Protection & Planning Group - Nat. Planning & Conservation Department,GRANTS PAYABLE - PLACES OF WORSHIP
36,DCMS,EH,26/04/2013,Project St Michael,0082001502,"77,000.00 ",Heritage Protection & Planning Group - Nat. Planning & Conservation Department,GRANTS PAYABLE - PLACES OF WORSHIP
37,DCMS,EH,26/04/2013,PCC of Newbold on Avon with Long Lawford,0082001504,"28,000.00 ",Heritage Protection & Planning Group - Nat. Planning & Conservation Department,GRANTS PAYABLE - PLACES OF WORSHIP
38,DCMS,EH,23/04/2013,Repton Parochial Church Council,0082001465,"38,500.00 ",Heritage Protection & Planning Group - Nat. Planning & Conservation Department,GRANTS PAYABLE - PLACES OF WORSHIP
39,DCMS,EH,26/04/2013,PCC of Watford Church,0082001505,"40,500.00 ",Heritage Protection & Planning Group - Nat. Planning & Conservation Department,GRANTS PAYABLE - PLACES OF WORSHIP
40,DCMS,EH,01/05/2013,PCC of Crosby Ravensworth,0082001537,"53,500.00 ",Heritage Protection & Planning Group - Nat. Planning & Conservation Department,GRANTS PAYABLE - PLACES OF WORSHIP
41,DCMS,EH,23/04/2013,Badsworth Parochial Church Council,0082001470,"35,500.00 ",Heritage Protection & Planning Group - Nat. Planning & Conservation Department,GRANTS PAYABLE - PLACES OF WORSHIP
42,DCMS,EH,26/04/2013,Long Itchington Parochial Church Council,0082001510,"37,000.00 ",Heritage Protection & Planning Group - Nat. Planning & Conservation Department,GRANTS PAYABLE - PLACES OF WORSHIP
43,DCMS,EH,09/04/2013,St Mark's PCC,0082001450,"55,500.00 ",Heritage Protection & Planning Group - Nat. Planning & Conservation Department,GRANTS PAYABLE - PLACES OF WORSHIP
44,DCMS,EH,09/04/2013,Lamerton PCC,0082001451,"44,500.00 ",Heritage Protection & Planning Group - Nat. Planning & Conservation Department,GRANTS PAYABLE - PLACES OF WORSHIP
45,DCMS,EH,23/04/2013,St George's PCC,0082001473,"91,500.00 ",Heritage Protection & Planning Group - Nat. Planning & Conservation Department,GRANTS PAYABLE - PLACES OF WORSHIP
46,DCMS,EH,01/05/2013,St Clements PCC,0082001540,"83,500.00 ",Heritage Protection & Planning Group - Nat. Planning & Conservation Department,GRANTS PAYABLE - PLACES OF WORSHIP
